fUSD/lending_fUSD_20240914
["ID","MTS","AMOUNT","RATE_DAILY","PERIOD"]
[338157597,1726317565848,1670.95,0.00026,60]
[338157598,1726317565924,2772.79,0.00026,60]
[338157599,1726317566117,1670.95,0.00026,60]
[338157600,1726317566176,2772.79,0.00026,60]
[338157601,1726317566370,1670.95,0.00026,60]
[338157602,1726317566456,2772.79,0.00026,60]
[338157603,1726317566624,1670.95,0.00026,60]
[338157604,1726317566709,2772.79,0.00026,60]
[338157605,1726317566887,1670.95,0.00026,60]
[338157606,1726317566958,2772.89448148,0.00026,60]
[338157607,1726317567179,1670.95,0.00026,60]
[338157608,1726317567454,1670.95,0.00026,60]
[338157609,1726317567726,1670.95,0.00026,60]
[338157610,1726317568001,1670.95,0.00026,60]
[338157611,1726317568234,1670.95,0.00026,60]
[338157612,1726317568502,1670.95,0.00026,60]
[338157613,1726317568713,500.0,0.00026,60]
[338157614,1726317568766,1670.95,0.00026,60]
[338157615,1726317568985,500.0,0.00026,60]
[338157616,1726317569036,1670.95,0.00026,60]
[338157617,1726317569228,500.0,0.00026,60]
[338157618,1726317569313,1670.95,0.00026,60]
[338157619,1726317569483,500.0,0.00026,60]
[338157620,1726317569588,1670.95,0.00026,60]
[338157621,1726317569745,500.0,0.00026,60]
[338157622,1726317569877,1670.95,0.00026,60]
[338157623,1726317570021,500.0,0.00026,60]
[338157624,1726317570170,1670.95,0.00026,60]
[338157625,1726317570307,500.0,0.00026,60]
[338157626,1726317570442,1670.95,0.00026,60]
[338157627,1726317570570,500.0,0.00026,60]
[338157628,1726317570691,1670.95,0.00026,60]
[338157629,1726317570825,500.0,0.00026,60]
[338157630,1726317570964,1670.95,0.00026,60]
[338157631,1726317571058,500.0,0.00026,60]
[338157632,1726317571288,1670.95,0.00026,60]
[338157633,1726317571336,500.0,0.00026,60]
[338157634,1726317571551,500.0,0.00026,60]
[338157635,1726317571601,1670.95,0.00026,60]
[338157636,1726317571783,500.0,0.00026,60]
[338157637,1726317571875,1670.95,0.00026,60]
[338157638,1726317572056,500.0,0.00026,60]
[338157639,1726317572157,1671.01,0.00026,60]
[338157640,1726317572533,500.0,0.00026,60]
[338157641,1726317572607,500.0,0.00026,60]
[338157642,1726317572865,500.0,0.00026,60]
[338157643,1726317573436,500.0,0.00026,60]
[338157644,1726317573516,500.0,0.00026,60]
[338157645,1726317573666,500.0,0.00026,60]
[338157646,1726317573923,500.0,0.00026,60]
[338157647,1726317574194,425.7673029,0.00026,60]
[338157648,1726317575005,949.85,0.00012568,2]
[338157649,1726317578341,2452.13,0.00026,60]
[338157650,1726317578609,2452.13,0.00026,60]
[338157651,1726317579227,2452.13,0.00026,60]
[338157652,1726317579496,2452.13,0.00026,60]
[338157653,1726317579764,2452.13,0.00026,60]
[338157654,1726317579910,2535.2,0.00026,60]
[338157655,1726317580107,2452.13,0.00026,60]
[338157656,1726317580157,2535.2,0.00026,60]
[338157657,1726317580357,2452.13,0.00026,60]
[338157658,1726317580436,2535.2,0.00026,60]
[338157659,1726317580619,2452.13,0.00026,60]
[338157660,1726317580705,2535.2,0.00026,60]
[338157661,1726317580886,2452.13,0.00026,60]
[338157662,1726317580958,2535.2,0.00026,60]
[338157663,1726317581145,2452.13,0.00026,60]
[338157664,1726317581249,2535.2,0.00026,60]
[338157665,1726317581582,2452.13,0.00026,60]
[338157666,1726317581869,2452.13,0.00026,60]
[338157667,1726317582227,2452.13,0.00026,60]
[338157668,1726317582277,2535.2,0.00026,60]
[338157669,1726317582493,2452.13,0.00026,60]
[338157670,1726317582549,2535.2,0.00026,60]
[338157671,1726317582790,2452.13,0.00026,60]
[338157672,1726317582841,2535.2,0.00026,60]
[338157673,1726317583050,2535.2,0.00026,60]
[338157674,1726317583205,2452.13,0.00026,60]
[338157675,1726317583732,2535.2,0.00026,60]
[338157676,1726317583792,2452.13,0.00026,60]
[338157677,1726317583848,2452.13,0.00026,60]
[338157678,1726317584060,2535.2,0.00026,60]
[338157679,1726317584177,2452.13,0.00026,60]
[338157680,1726317584314,2535.2,0.00026,60]
[338157681,1726317584575,2452.13,0.00026,60]
[338157682,1726317584714,2535.2,0.00026,60]
[338157683,1726317584822,2452.13,0.00026,60]
[338157684,1726317584969,2535.2,0.00026,60]
[338157685,1726317585094,2452.13,0.00026,60]
[338157686,1726317585230,2535.2,0.00026,60]
[338157687,1726317585368,2452.13,0.00026,60]
[338157688,1726317585508,2535.2,0.00026,60]
[338157689,1726317585776,2452.33721958,0.00026,60]
[338157690,1726317585828,2535.2,0.00026,60]
[338157691,1726317586031,2535.2,0.00026,60]
[338157692,1726317586285,2535.2,0.00026,60]
[338157693,1726317586570,2535.2,0.00026,60]
[338157694,1726317586829,2535.2,0.00026,60]
[338157695,1726317587079,2535.2,0.00026,60]
[338157696,1726317587346,2535.37258409,0.00026,60]
[338157697,1726317589294,1246.81,0.00026,60]
[338157698,1726317589551,1246.81,0.00026,60]
[338157699,1726317589841,1246.81,0.00026,60]
[338157700,1726317589951,500.0,0.00026,60]
[338157701,1726317590133,1246.81,0.00026,60]
[338157702,1726317590205,500.0,0.00026,60]
[338157703,1726317590396,1246.81,0.00026,60]
[338157704,1726317590463,500.0,0.00026,60]
[338157705,1726317590650,532.75,0.00026,60]
[338157706,1726317590728,500.0,0.00026,60]
[338157707,1726317590967,532.75,0.00026,60]
[338157708,1726317591020,500.0,0.00026,60]
[338157709,1726317591075,1246.81,0.00026,60]
[338157710,1726317591211,532.75,0.00026,60]
[338157711,1726317591260,500.0,0.00026,60]
[338157712,1726317591320,1246.81,0.00026,60]
[338157713,1726317591479,532.75,0.00026,60]
[338157714,1726317591533,500.0,0.00026,60]
[338157715,1726317591614,1246.81,0.00026,60]
[338157716,1726317591736,532.75,0.00026,60]
[338157717,1726317591786,500.0,0.00026,60]
[338157718,1726317591918,1246.81,0.00026,60]
[338157719,1726317591981,532.75,0.00026,60]
[338157720,1726317592129,270.94261133,0.00026,60]
[338157721,1726317592199,1246.81,0.00026,60]
[338157722,1726317592260,532.75,0.00026,60]
[338157723,1726317592450,1246.81,0.00026,60]
[338157724,1726317592516,532.75,0.00026,60]
[338157725,1726317592710,1246.81,0.00026,60]
[338157726,1726317592881,532.75,0.00026,60]
[338157727,1726317592977,1246.81,0.00026,60]
[338157728,1726317593159,532.75,0.00026,60]
[338157729,1726317593213,225.06008511,0.00026,60]
[338157730,1726317617069,154.92,0.00012593,2]
[338157731,1726317649143,454.87,0.00010665,2]
[338157732,1726317670640,619.94,0.00012524,2]
[338157733,1726317790890,299.59,0.00012407,2]
[338157734,1726317839541,150.0,0.00012424,2]
[338157735,1726317840237,167.59,0.00012424,2]
[338157736,1726317907148,150.0,0.00011688,2]
[338157737,1726317907473,150.0,0.00012121,2]
[338157738,1726317907813,150.0,0.00012553,2]
[338157739,1726317910757,150.0,0.00011688,2]
[338157747,1726317918267,150.0,0.00011688,2]
[338157748,1726318023106,1000.0,0.00012458,2]
[338157749,1726318035374,500.0,0.000126,4]
[338157750,1726318080296,250.0,0.00012263,2]
[338157751,1726318082223,200.0,0.000123,2]
[338157752,1726318132813,179.6,0.00012397,2]
[338157753,1726318157534,432.12,0.00010687,2]
[338157762,1726318231771,-485.64377216,0.000127,4]
[338157763,1726318231783,-514.35622784,0.000127,4]
[338157764,1726318231792,-417.14583521,0.00012777,2]
[338157765,1726318231801,-1958.7608,0.000128,2]
[338157767,1726318231811,-1600.0,0.000128,4]
[338157769,1726318231819,-7805.12171124,0.00012899,2]
[338157770,1726318231829,-300.0,0.00012899,2]
[338157771,1726318231839,-201.34185824,0.000129,2]
[338157772,1726318231848,-2100.0,0.000129,4]
[338157773,1726318231857,-184.03441111,0.000129,2]
[338157774,1726318231866,-514.17786847,0.000129,2]
[338157775,1726318231875,-157.15454422,0.000129,2]
[338157776,1726318231884,-174.49724788,0.000129,2]
[338157777,1726318231893,-4668.92854156,0.000129,2]
[338157778,1726318231902,-432.12,0.00012951,2]
[338157779,1726318231911,-402.93384064,0.00012973,2]
[338157780,1726318231920,-23830.31703739,0.0001298,2]
[338157781,1726318231930,-217.34399043,0.00012986,2]
[338157782,1726318231939,-179.1312418,0.00012986,2]
[338157783,1726318231948,-261.94129289,0.00012986,2]
[338157784,1726318231957,-164.062,0.00012989,2]
[338157785,1726318231966,-409.998,0.00012989,2]
[338157786,1726318231976,-150.0,0.00012989,2]
[338157787,1726318231985,-299.99,0.0001299,2]
[338157788,1726318231994,-1240.4,0.0001299,2]
[338157789,1726318232002,-619.39,0.0001299,2]
[338157790,1726318232011,-26919.36,0.0001299,2]
[338157791,1726318232020,-151.33,0.0001299,2]
[338157792,1726318232029,-500.0,0.00012999,2]
[338157793,1726318232038,-431.99324153,0.00012999,2]
[338157794,1726318232047,-216671.62685305,0.00013,2]
[338157795,1726318232058,-457.01764906,0.00013,2]
[338157796,1726318232080,-14094.7721305,0.00013,2]
[338157797,1726318232092,-348.26422483,0.00013,2]
[338157798,1726318232102,-1072.92778133,0.00013,2]
[338157801,1726318232135,-3335.32904076,0.00013,2]
[338157802,1726318232144,-14121.26167941,0.00013,2]
[338157803,1726318232158,-4208.25379227,0.00013,2]
[338157804,1726318232168,-9195.44957511,0.00013,2]
[338157805,1726318237871,-208.57291761,0.00012675,2]
[338157806,1726318237880,-163.08,0.0001297,2]
[338157807,1726318237889,-163.08,0.0001298,2]
[338157808,1726318237898,-163.08,0.0001299,2]
[338157809,1726318237907,-2761.75667341,0.00013,2]
[338157810,1726318237924,-535680.09081555,0.00013,2]
[338157811,1726318237982,-384.30158449,0.00013,2]
[338157812,1726318237994,-78192.71671266,0.00013,2]
[338157813,1726318238006,-570.23685725,0.00013,2]
[338157814,1726318238021,-441.66001173,0.00013,2]
[338157815,1726318238147,-1089.05208853,0.00013,2]
[338157816,1726318238158,-1839.93992941,0.00013,2]
[338157922,1726318240168,-389.44550813,0.00013,2]
[338157923,1726318240180,-83753.99677017,0.00013,2]
[338157924,1726318240192,-327995.49225876,0.00013,2]
[338157925,1726318240499,-221616.12241123,0.00013,2]
[338157926,1726318240512,-6905.52589726,0.00013,2]
[338157927,1726318240664,-129.92670944,0.00013,2]
[338157931,1726318242884,-58051.0589047,0.00013,2]
[338157932,1726318243152,-56061.94852509,0.00013,2]
[338157933,1726318243164,-17181.9388275,0.00013,2]
[338157941,1726318648459,410.31,0.00010704,2]
[338157942,1726318746637,421.62987278,0.00012629,2]
[338157943,1726318799640,154.03,0.00010959,2]
[338157944,1726318820856,-1400.0,0.00012644,2]
[338157945,1726318861191,250.0,0.00012404,2]
[338157946,1726318890825,451.05,0.00012457,2]
[338157947,1726318948791,250.0,0.00012498,2]
[338157948,1726319049369,800.0,0.00012573,2]
[338157949,1726319094559,150.24,0.00012501,2]
[338157950,1726319098735,250.0,0.00012501,2]
[338157951,1726319108044,169.26,0.00012584,2]
[338157952,1726319140783,389.79,0.00010708,2]
[338157953,1726319186066,256.4465419,0.00019,20]
[338157954,1726319329430,-1197.73070017,0.00012644,2]
[338157956,1726319329484,-1197.73070017,0.00012644,2]
[338157959,1726319329529,-1197.73070017,0.00012644,2]
[338157962,1726319329587,-1197.73070017,0.00012644,2]
[338157965,1726319329641,-1197.73070017,0.00012644,2]
[338157966,1726319350910,546.83,0.0001253,2]
[338157967,1726319431287,500.0,0.0001253,2]
[338157972,1726319431937,-575.10458265,0.00012644,2]
[338157973,1726319431950,-33.81411329,0.00012644,2]
[338157974,1726319431959,-170.92,0.0001267,2]
[338157975,1726319431968,-103.3302402,0.00012718,2]
[338157976,1726319431979,-96.6697598,0.00012718,2]
[338157977,1726319431989,-300.0,0.000128,4]
[338157978,1726319431998,-2093.51960255,0.00012859,2]
[338157979,1726319432007,-208.47988884,0.00012859,2]
[338157980,1726319432017,-300.0,0.00012899,2]
[338157981,1726319432027,-245.39924032,0.000129,2]
[338157982,1726319432038,-166.43557926,0.000129,2]
[338157983,1726319432063,-34.90627898,0.000129,2]
[338157984,1726319432072,-600.0,0.000129,4]
[338157985,1726319432081,-873.62749691,0.000129,2]
[338157986,1726319432090,-161.03010973,0.000129,2]
[338157987,1726319432099,-389.79,0.00012972,2]
[338157988,1726319432108,-150.0,0.00012972,2]
[338157989,1726319432117,-29694.02,0.00012973,2]
[338157990,1726319432126,-175.01683303,0.00012973,2]
[338157991,1726319432135,-500.0,0.00012973,2]
[338157992,1726319432144,-151.33,0.0001299,2]
[338157993,1726319432153,-230.85455327,0.00012999,2]
[338157994,1726319432162,-161.167,0.00012999,2]
[338157995,1726319432171,-402.896,0.00012999,2]
[338157996,1726319432180,-5990.81873438,0.00013,2]
[338157997,1726319432192,-118890.05799836,0.00013,2]
[338157998,1726319432203,-289505.00000024,0.00013,2]
[338158000,1726319432239,-38728.88450793,0.00013,2]
[338158001,1726319432276,-1284.40976051,0.00013,2]
[338158003,1726319432287,-405.84115355,0.00013,2]
[338158027,1726319438120,-409.57601321,0.00013,2]
[338158028,1726319438131,-5901.89999999,0.00013,2]
[338158029,1726319438142,-21242.7323858,0.00013,2]
[338158030,1726319438182,-29970.33545844,0.00013,2]
[338158031,1726319438193,-634.7042152,0.00013,2]
[338158043,1726319440130,-89099.0984953,0.00013,2]
[338158044,1726319440298,-33.79369419,0.00013,2]
[338158045,1726319440345,-6757.96750055,0.00013,2]
[338158056,1726319443445,-1615.41903923,0.00013,2]
[338158058,1726319443464,-56433.29999649,0.00013,2]
[338158064,1726319446271,-500.0,0.00012644,2]
[338158065,1726319446280,-2500.0,0.00013,2]
[338158066,1726319499445,628.53229148,0.00019,20]
[338158067,1726319690190,380.65,0.00010787,2]
[338158068,1726319718943,174.22974844,0.00012604,2]
[338158069,1726319723979,174.22974843,0.00012629,2]
[338158070,1726319850310,-150.0,0.00012644,2]
[338158071,1726319930190,174.22974843,0.0001264,2]
[338158072,1726320130980,421.53684401,0.00012638,2]
[338158074,1726320329649,361.61,0.00010826,2]
[338158075,1726320436981,177.62340756,0.000126,4]
[338158076,1726320437005,22.37659244,0.000126,4]
[338158082,1726320585403,-250.0,0.00012649,2]
[338158083,1726320585431,-177.86,0.00012677,2]
[338158084,1726320585457,-500.0,0.000127,4]
[338158085,1726320585485,-289.32257206,0.0001274,2]
[338158086,1726320585514,-103.70342794,0.0001274,2]
[338158087,1726320585539,-170.954,0.0001274,2]
[338158088,1726320585564,-942.52514412,0.00012762,2]
[338158090,1726320585599,-57.47485588,0.00012762,2]
[338158091,1726320585623,-225.52,0.00012762,2]
[338158093,1726320585648,-150.24,0.0001278,2]
[338158095,1726320585674,-154.92,0.00012783,2]
[338158097,1726320585699,-629.02771618,0.000128,4]
[338158100,1726320585741,-70.97228382,0.000128,4]
[338158102,1726320585767,-150.0,0.0001287,2]
[338158104,1726320585792,-153.86292,0.0001287,2]
[338158105,1726320585816,-348.4641,0.0001289,2]
[338158107,1726320585842,-493.88326824,0.000129,2]
[338158110,1726320585871,-429.7367545,0.000129,2]
[338158111,1726320585896,-787.44581756,0.000129,4]
[338158114,1726320585928,-212.55418244,0.000129,4]
[338158115,1726320585957,-161.0301097,0.000129,2]
[338158116,1726320585983,-460.21,0.000129,2]
[338158117,1726320586008,-383.38827992,0.0001299,2]
[338158118,1726320586042,-1217.18257206,0.0001299,2]
[338158119,1726320586086,-1217.18257206,0.0001299,2]
[338158120,1726320586115,-613.70709445,0.0001299,2]
[338158121,1726320586144,-177.82889743,0.0001299,2]
[338158122,1726320586169,-161.66360492,0.0001299,2]
[338158123,1726320586195,-877.69006971,0.00012999,2]
[338158124,1726320587852,-480.25344333,0.00012999,2]
[338158125,1726320587877,-150.0,0.00012999,2]
[338158126,1726320587905,-586.92912873,0.00013,2]
[338158155,1726320632315,-250.0,0.000128,2]
[338158156,1726320632325,-300.0,0.00012999,2]
[338158157,1726320632334,-1752.76513542,0.00013,2]
[338158158,1726320632458,-3306.3281155,0.00013,2]
[338158159,1726320632469,-2421.09900074,0.00013,2]
[338158169,1726320638245,-11488.8,0.00013,2]
[338158170,1726320638402,-2344.10691533,0.00013,2]
[338158171,1726320638415,-852.9316908,0.00013,2]
[338158332,1726320644026,-2649.21174473,0.00013,2]
[338158333,1726320644048,-121686.67981955,0.00013,2]
[338158334,1726320644058,-425.62857967,0.00013,2]
[338158399,1726320710784,250.0,0.0001261,2]
[338158400,1726320713486,225.52,0.0001261,2]
[338158401,1726320742857,200.0,0.00012612,2]
[338158402,1726320761335,155.5,0.00012552,2]
[338158403,1726320770664,150.24,0.00012552,2]
[338158404,1726320822278,370.22,0.00010635,2]
[338158405,1726320903155,1204.0,0.00012501,5]
[338158407,1726321098747,200.0,0.000126,4]
[338158408,1726321108007,250.0,0.00012332,2]
[338158410,1726321219943,186209.0,0.000126,2]
[338158411,1726321237676,154.92,0.00012291,2]
[338158412,1726321307128,351.7,0.00010563,2]
[338158413,1726321395452,1000.0,0.00012307,2]
[338158414,1726321411697,11509.0,0.000126,3]
[338158415,1726321445795,795.83,0.00012374,2]
[338158416,1726321507502,150.0,0.00011688,2]
[338158417,1726321624746,400.0,0.000126,4]
[338158418,1726321650323,154.03,0.00010959,2]
[338158419,1726321665966,250.0,0.00012287,2]
[338158420,1726321694912,11509.0,0.000125,5]
[338158421,1726321809546,177.86,0.00012355,2]
[338158425,1726321832323,-421.53684401,0.00012657,2]
[338158426,1726321832333,-165.47941094,0.0001269,2]
[338158427,1726321832342,-800.0,0.000127,4]
[338158428,1726321832351,-2043.9145,0.000127,2]
[338158429,1726321832360,-1200.0,0.000128,4]
[338158430,1726321832370,-13069.00521695,0.000128,2]
[338158431,1726321832381,-921.28991571,0.000128,2]
[338158432,1726321832391,-351.7,0.00012827,2]
[338158433,1726321832400,-150.0,0.00012849,2]
[338158434,1726321832409,-3014.76855,0.0001287,2]
[338158435,1726321832418,-3014.76855,0.0001287,2]
[338158436,1726321832427,-3014.76855,0.0001287,2]
[338158437,1726321832436,-3014.76856,0.0001287,2]
[338158438,1726321832445,-352.49262757,0.00012899,2]
[338158439,1726321832454,-250.62611253,0.000129,2]
[338158440,1726321832463,-29999.99,0.000129,2]
[338158441,1726321832473,-8103.12,0.000129,2]
[338158442,1726321832482,-4581.94,0.000129,2]
[338158443,1726321832492,-221.64,0.000129,2]
[338158444,1726321832501,-1600.0,0.000129,4]
[338158445,1726321832510,-622.06891682,0.000129,2]
[338158446,1726321832519,-168.40771537,0.000129,2]
[338158447,1726321832528,-182.91452335,0.000129,2]
[338158448,1726321832537,-161.0301097,0.000129,2]
[338158449,1726321832547,-6888.58798767,0.000129,2]
[338158450,1726321832556,-164.614,0.0001291,2]
[338158451,1726321832565,-362.355,0.0001291,2]
[338158452,1726321832574,-151.02,0.0001299,2]
[338158453,1726321832583,-1177.00962319,0.00012999,2]
[338158454,1726321832592,-646.0,0.00013,2]
[338158455,1726321832601,-36500.27651232,0.00013,2]
[338158461,1726321832659,-1108.19691343,0.00013,2]
[338158464,1726321832685,-1516.45208888,0.00013,2]
[338158466,1726321832696,-1289.065259,0.00013,2]
[338158507,1726321838634,-17996.72186206,0.00013,2]
[338158508,1726321838645,-586.27968751,0.00013,2]
[338158509,1726321838656,-76369.19872736,0.00013,2]
[338158510,1726321838664,-328678.51995769,0.00013,2]
[338158511,1726321838676,-734.84497895,0.00013,2]
[338158512,1726321838697,-1656.96940033,0.00013,2]
[338158513,1726321838708,-496.804842,0.00013,2]
[338158514,1726321838719,-775.44461026,0.00013,2]
[338158515,1726321838730,-669.980028,0.00013,2]
[338158518,1726321838786,-0.94353744,0.00013,2]
[338158520,1726321838843,-479.23585153,0.00013,2]
[338158521,1726321838853,-500.0,0.00013,2]
[338158522,1726321838864,-1856.5631075,0.00013,2]
[338158523,1726321838875,-300.32,0.00013,2]
[338158524,1726321838886,-24059.66385186,0.00013,2]
[338158525,1726321838915,-5314.22404625,0.00013,2]
[338158526,1726321838925,-440.1604635,0.00013,2]
[338158528,1726321840502,-357.23509454,0.00013,2]
[338158529,1726321840515,-222.76490546,0.00013,2]
[338158530,1726321840524,-674.65509454,0.00013,2]
[338158531,1726321840535,-25542.18993968,0.00013,2]
[338158540,1726321844055,-44589.42231023,0.00013,2]
[338158542,1726321846406,-18886.39629546,0.00013,2]
[338158543,1726321846582,-6009.24920875,0.00013,2]
[338158544,1726321848206,1050.0,0.00011,2]
[338158545,1726321912709,197.29,0.00012614,2]
[338158546,1726321923277,14935.94,0.00012544,2]
[338158547,1726321965009,420.1107,0.00012628,2]
[338158548,1726321970752,2000.0,0.00012618,2]
[338158549,1726322102782,340.89,0.00010611,2]
[338158550,1726322194977,182.26,0.0001251,2]
[338158551,1726322195225,182.26,0.00012541,2]
[338158552,1726322195426,182.26,0.00012573,2]
[338158553,1726322201021,162.26,0.00012523,2]
[338158554,1726322213619,250.0,0.00012523,2]
[338158555,1726322274308,250.0,0.00012415,2]
[338158556,1726322367038,250.0,0.00012499,2]
[338158557,1726322375660,150.24,0.00012458,2]
[338158558,1726322386958,421.53684401,0.00012621,2]
[338158559,1726322395413,-500.0,0.00028,120]
[338158560,1726322395462,-500.0,0.00028,120]
[338158561,1726322395510,-500.0,0.00028,120]
[338158562,1726322395559,-372.77198126,0.00028,120]
[338158563,1726322395596,800.0,0.00012483,2]
[338158564,1726322423493,500.0,0.00026,60]
[338158565,1726322423781,1107.16,0.00026,60]
[338158566,1726322423907,500.0,0.00026,60]
[338158567,1726322423967,1107.16,0.00026,60]
[338158568,1726322424092,500.0,0.00026,60]
[338158569,1726322424177,1107.16,0.00026,60]
[338158570,1726322424692,500.0,0.00026,60]
[338158571,1726322424767,1107.16,0.00026,60]
[338158572,1726322424901,500.0,0.00026,60]
[338158573,1726322424987,1107.16,0.00026,60]
[338158574,1726322425093,325.52,0.00026,60]
[338158575,1726322425186,1107.16,0.00026,60]
[338158576,1726322425295,500.0,0.00026,60]
[338158577,1726322425370,1107.16,0.00026,60]
[338158578,1726322425488,500.0,0.00026,60]
[338158579,1726322425542,173.58,0.00012403,2]
[338158580,1726322425625,1107.16,0.00026,60]
[338158581,1726322425907,1107.16,0.00026,60]
[338158582,1726322426210,1107.16,0.00026,60]
[338158583,1726322426303,500.0,0.00026,60]
[338158584,1726322426741,1107.16,0.00026,60]
[338158585,1726322426835,500.0,0.00026,60]
[338158586,1726322426916,1107.16,0.00026,60]
[338158587,1726322427007,500.0,0.00026,60]
[338158588,1726322427116,1107.16,0.00026,60]
[338158589,1726322427213,1061.97,0.00026,60]
[338158590,1726322427270,500.0,0.00026,60]
[338158591,1726322427366,1107.16,0.00026,60]
[338158592,1726322427453,1061.97,0.00026,60]
[338158593,1726322427513,500.0,0.00026,60]
[338158594,1726322427570,200.55367324,0.00026,60]
[338158595,1726322427656,1107.16,0.00026,60]
[338158596,1726322427728,500.0,0.00026,60]
[338158597,1726322427785,1061.97,0.00026,60]
[338158598,1726322427842,500.0,0.00026,60]
[338158599,1726322427913,1107.16,0.00026,60]
[338158600,1726322428001,500.0,0.00026,60]
[338158601,1726322428069,1061.97,0.00026,60]
[338158602,1726322428128,500.0,0.00026,60]
[338158603,1726322428196,1107.16,0.00026,60]
[338158604,1726322428254,500.65539257,0.00026,60]
[338158605,1726322428312,500.0,0.00026,60]
[338158606,1726322428374,500.0,0.00026,60]
[338158607,1726322428432,1061.97,0.00026,60]
[338158608,1726322428536,500.0,0.00026,60]
[338158609,1726322428593,500.0,0.00026,60]
[338158610,1726322428650,1061.97,0.00026,60]
[338158611,1726322428823,500.0,0.00026,60]
[338158612,1726322428888,500.0,0.00026,60]
[338158613,1726322428945,1061.97,0.00026,60]
[338158614,1726322429036,1107.16,0.00026,60]
[338158615,1726322429102,500.0,0.00026,60]
[338158616,1726322429159,500.0,0.00026,60]
[338158617,1726322429289,1061.97,0.00026,60]
[338158618,1726322429386,1107.16,0.00026,60]
[338158619,1726322429446,501.52493497,0.00026,60]
[338158620,1726322429504,1061.97,0.00026,60]
[338158621,1726322429572,1107.16,0.00026,60]
[338158622,1726322429655,1745.12,0.00026,60]
[338158623,1726322429800,1061.97,0.00026,60]
[338158624,1726322429873,1107.16,0.00026,60]
[338158625,1726322429930,1387.1,0.00026,60]
[338158626,1726322429990,1745.12,0.00026,60]
[338158627,1726322430150,1061.97,0.00026,60]
[338158628,1726322430208,1387.1,0.00026,60]
[338158629,1726322430265,1107.16,0.00026,60]
[338158630,1726322430324,1745.12,0.00026,60]
[338158631,1726322430382,1061.97,0.00026,60]
[338158632,1726322430441,1461.56,0.00026,60]
[338158633,1726322430497,1387.1,0.00026,60]
[338158634,1726322430556,1107.16,0.00026,60]
[338158635,1726322430614,1745.12,0.00026,60]
[338158636,1726322430741,868.68,0.00026,60]
[338158637,1726322430818,1061.97,0.00026,60]
[338158638,1726322430876,1461.56,0.00026,60]
[338158639,1726322430934,1107.32,0.00026,60]